[Event "Titled Tuesday Blitz March 28 Late 2023"]
[White "Dmitrenko, Viktor"]
[Black "Remolar Gallen, Jose"]
[WhiteFideId "14110270"]
[BlackFideId "2215187"]
[WhiteElo "2292"]
[BlackElo "2223"]
[Result "1-0"]
[Round "07"]
[TimeControl "180+2"]
[Date "2023.03.28"]
[WhiteClock "0:00:20"]
[BlackClock "0:00:03"]

1. d4 {[%clk 0:02:55]}  Nf6 {[%clk 0:02:58]} 2. c4 {[%clk 0:02:54]}  g6 {[%clk 0:02:58]} 3. Nc3 {[%clk 0:02:53]}  c5 {[%clk 0:02:52]} 4. d5 {[%clk 0:02:52]}  Bg7 {[%clk 0:02:52]} 5. e4 {[%clk 0:02:51]}  O-O {[%clk 0:02:50]} 6. Be2 {[%clk 0:02:51]}  d6 {[%clk 0:02:47]} 7. Nf3 {[%clk 0:02:49]}  e6 {[%clk 0:02:45]} 8. O-O {[%clk 0:02:48]}  exd5 {[%clk 0:02:44]} 9. cxd5 {[%clk 0:02:48]}  Re8 {[%clk 0:02:44]} 10. Nd2 {[%clk 0:02:47]}  Na6 {[%clk 0:02:26]} 11. Re1 {[%clk 0:02:41]}  Nc7 {[%clk 0:02:20]} 12. Qc2 {[%clk 0:02:37]}  Bd7 {[%clk 0:02:13]} 13. a4 {[%clk 0:02:35]}  a6 {[%clk 0:02:08]} 14. Nc4 {[%clk 0:02:29]}  Bf8 {[%clk 0:01:59]} 15. Bf4 {[%clk 0:02:24]}  Bg4 {[%clk 0:01:49]} 16. f3 {[%clk 0:02:13]}  Nh5 {[%clk 0:01:48]} 17. Be3 {[%clk 0:02:07]}  Bd7 {[%clk 0:01:39]} 18. g4 {[%clk 0:01:57]}  Ng7 {[%clk 0:01:36]} 19. Bf4 {[%clk 0:01:50]}  Qf6 {[%clk 0:01:30]} 20. Qd2 {[%clk 0:01:49]}  b5 {[%clk 0:01:26]} 21. Nb6 {[%clk 0:01:45]}  Rad8 {[%clk 0:01:03]} 22. Bg5 {[%clk 0:01:39]}  Qd4+ {[%clk 0:01:01]} 23. Qxd4 {[%clk 0:01:37]}  cxd4 {[%clk 0:01:02]} 24. Bxd8 {[%clk 0:01:37]}  Rxd8 {[%clk 0:00:59]} 25. Nd1 {[%clk 0:01:27]}  Be8 {[%clk 0:00:45]} 26. Rc1 {[%clk 0:01:23]}  Na8 {[%clk 0:00:40]} 27. Nxa8 {[%clk 0:01:08]}  Rxa8 {[%clk 0:00:41]} 28. a5 {[%clk 0:01:05]}  Be7 {[%clk 0:00:38]} 29. b4 {[%clk 0:01:02]}  f5 {[%clk 0:00:26]} 30. Nf2 {[%clk 0:00:57]}  Bg5 {[%clk 0:00:22]} 31. Rc2 {[%clk 0:00:53]}  Be3 {[%clk 0:00:18]} 32. Kg2 {[%clk 0:00:52]}  Bd7 {[%clk 0:00:17]} 33. Rc7 {[%clk 0:00:43]}  Be8 {[%clk 0:00:17]} 34. Rd1 {[%clk 0:00:40]}  Kf8 {[%clk 0:00:16]} 35. Bd3 {[%clk 0:00:36]}  f4 {[%clk 0:00:11]} 36. e5 {[%clk 0:00:33]}  dxe5 {[%clk 0:00:11]} 37. Ne4 {[%clk 0:00:33]}  Bf7 {[%clk 0:00:10]} 38. Nf6 {[%clk 0:00:32]}  Ne8 {[%clk 0:00:10]} 39. Nxe8 {[%clk 0:00:30]}  Kxe8 {[%clk 0:00:11]} 40. Be4 {[%clk 0:00:29]}  Rd8 {[%clk 0:00:11]} 41. Rc6 {[%clk 0:00:27]}  Bxd5 {[%clk 0:00:10]} 42. Bxd5 {[%clk 0:00:26]}  Rxd5 {[%clk 0:00:11]} 43. Rxa6 {[%clk 0:00:26]}  d3 {[%clk 0:00:12]} 44. Rc6 {[%clk 0:00:24]}  d2 {[%clk 0:00:12]} 45. a6 {[%clk 0:00:24]}  Kd7 {[%clk 0:00:12]} 46. Rc2 {[%clk 0:00:22]}  Rd6 {[%clk 0:00:11]} 47. Ra2 {[%clk 0:00:22]}  Ba7 {[%clk 0:00:04]} 48. Rdxd2 {[%clk 0:00:22]}  Rxd2+ {[%clk 0:00:05]} 49. Rxd2+ {[%clk 0:00:22]}  Kc6 {[%clk 0:00:06]} 50. Re2 {[%clk 0:00:21]}  Kd5 {[%clk 0:00:05]} 51. Rc2 {[%clk 0:00:21]}  e4 {[%clk 0:00:02]} 52. Rc7 {[%clk 0:00:21]}  Bb6 {[%clk 0:00:03]} 53. a7 {[%clk 0:00:20]}  Bxc7 {[%clk 0:00:02]} 54. a8=Q+ {[%clk 0:00:19]}  Kd6 {[%clk 0:00:03]} 55. Qxe4 {[%clk 0:00:20]} 1-0


[Site "https://www.chess.com"]

[Event "Titled Tuesday Blitz March 28 Late 2023"]
[White "Martin Barcelo, Carles"]
[Black "Chylewski, Patryk"]
[WhiteFideId "24561444"]
[BlackFideId "1186191"]
[WhiteElo "2089"]
[BlackElo "2163"]
[Result "1-0"]
[Round "07"]
[TimeControl "180+2"]
[Date "2023.03.28"]
[WhiteClock "0:00:15"]
[BlackClock "0:00:04"]

1. d4 {[%clk 0:03:00]}  Nf6 {[%clk 0:02:56]} 2. Nf3 {[%clk 0:03:00]}  e6 {[%clk 0:02:54]} 3. e3 {[%clk 0:02:58]}  b6 {[%clk 0:02:51]} 4. Bd3 {[%clk 0:02:51]}  Bb7 {[%clk 0:02:50]} 5. O-O {[%clk 0:02:50]}  d5 {[%clk 0:02:49]} 6. b3 {[%clk 0:02:36]}  Bd6 {[%clk 0:02:49]} 7. Bb2 {[%clk 0:02:36]}  O-O {[%clk 0:02:49]} 8. Nbd2 {[%clk 0:02:36]}  c5 {[%clk 0:02:49]} 9. Ne5 {[%clk 0:02:33]}  Nc6 {[%clk 0:02:49]} 10. f4 {[%clk 0:02:30]}  Ne7 {[%clk 0:02:48]} 11. Qf3 {[%clk 0:02:21]}  Nf5 {[%clk 0:02:46]} 12. g4 {[%clk 0:02:20]}  Nh4 {[%clk 0:02:46]} 13. Qh3 {[%clk 0:02:14]}  Ne4 {[%clk 0:02:45]} 14. Ndf3 {[%clk 0:01:53]}  Nxf3+ {[%clk 0:02:31]} 15. Nxf3 {[%clk 0:01:53]}  f6 {[%clk 0:02:20]} 16. Rad1 {[%clk 0:01:50]}  Rc8 {[%clk 0:02:19]} 17. Nd2 {[%clk 0:01:38]}  cxd4 {[%clk 0:01:46]} 18. Nxe4 {[%clk 0:01:09]}  dxe4 {[%clk 0:01:44]} 19. Bc4 {[%clk 0:01:09]}  Qe7 {[%clk 0:01:26]} 20. Bxd4 {[%clk 0:01:05]}  Rfd8 {[%clk 0:01:20]} 21. g5 {[%clk 0:01:01]}  Rxc4 {[%clk 0:01:07]} 22. gxf6 {[%clk 0:00:54]}  gxf6 {[%clk 0:01:08]} 23. bxc4 {[%clk 0:00:52]}  Kh8 {[%clk 0:01:08]} 24. Kh1 {[%clk 0:00:49]}  Rf8 {[%clk 0:00:52]} 25. Qh4 {[%clk 0:00:47]}  Bc5 {[%clk 0:00:43]} 26. Rg1 {[%clk 0:00:36]}  Bxd4 {[%clk 0:00:40]} 27. Rxd4 {[%clk 0:00:37]}  Bc6 {[%clk 0:00:34]} 28. Qh6 {[%clk 0:00:29]}  Rc8 {[%clk 0:00:23]} 29. Rd2 {[%clk 0:00:16]}  Be8 {[%clk 0:00:16]} 30. Rdg2 {[%clk 0:00:16]}  Ba4 {[%clk 0:00:04]} 31. Rg7 {[%clk 0:00:15]} 1-0


[Site "https://www.chess.com"]

[Event "Titled Tuesday Blitz March 28 Late 2023"]
[White "Jorajuria Mendoza, Algol"]
[Black "Ronka, Erik"]
[WhiteFideId "5128897"]
[BlackFideId "505080"]
[WhiteElo "2076"]
[BlackElo "2264"]
[Result "0-1"]
[Round "07"]
[TimeControl "180+2"]
[Date "2023.03.28"]
[WhiteClock "0:00:33"]
[BlackClock "0:01:32"]

1. e4 {[%clk 0:02:54]}  g6 {[%clk 0:02:59]} 2. d4 {[%clk 0:02:54]}  Bg7 {[%clk 0:02:59]} 3. Nc3 {[%clk 0:02:54]}  c6 {[%clk 0:02:59]} 4. Be3 {[%clk 0:02:55]}  d5 {[%clk 0:03:00]} 5. e5 {[%clk 0:02:54]}  f6 {[%clk 0:02:58]} 6. exf6 {[%clk 0:02:54]}  Nxf6 {[%clk 0:02:50]} 7. h3 {[%clk 0:02:54]}  O-O {[%clk 0:02:50]} 8. Nf3 {[%clk 0:02:54]}  Nbd7 {[%clk 0:02:39]} 9. Be2 {[%clk 0:02:45]}  Qe8 {[%clk 0:02:37]} 10. O-O {[%clk 0:02:31]}  e5 {[%clk 0:02:37]} 11. dxe5 {[%clk 0:02:31]}  Nxe5 {[%clk 0:02:37]} 12. Bc5 {[%clk 0:02:30]}  Rf7 {[%clk 0:02:34]} 13. Re1 {[%clk 0:02:21]}  Nxf3+ {[%clk 0:02:32]} 14. Bxf3 {[%clk 0:02:21]}  Qd8 {[%clk 0:02:32]} 15. a4 {[%clk 0:02:09]}  b6 {[%clk 0:02:29]} 16. Be3 {[%clk 0:01:59]}  Bb7 {[%clk 0:02:28]} 17. a5 {[%clk 0:01:53]}  Qc7 {[%clk 0:02:21]} 18. axb6 {[%clk 0:01:50]}  axb6 {[%clk 0:02:20]} 19. Rxa8+ {[%clk 0:01:50]}  Bxa8 {[%clk 0:02:20]} 20. Qd2 {[%clk 0:01:41]}  Rd7 {[%clk 0:02:09]} 21. Bf4 {[%clk 0:01:34]}  Qd8 {[%clk 0:02:07]} 22. g4 {[%clk 0:01:21]}  c5 {[%clk 0:02:01]} 23. Nb5 {[%clk 0:01:08]}  d4 {[%clk 0:01:56]} 24. Bxa8 {[%clk 0:01:02]}  Qxa8 {[%clk 0:01:56]} 25. Nc7 {[%clk 0:01:00]}  Qf3 {[%clk 0:01:55]} 26. Qd3 {[%clk 0:00:49]}  Qxf4 {[%clk 0:01:54]} 27. Ne6 {[%clk 0:00:46]}  Qd6 {[%clk 0:01:52]} 28. Qc4 {[%clk 0:00:39]}  Qd5 {[%clk 0:01:49]} 29. Qa6 {[%clk 0:00:36]}  Re7 {[%clk 0:01:34]} 30. Qc8+ {[%clk 0:00:33]}  Re8 {[%clk 0:01:32]} 0-1


[Site "https://www.chess.com"]

[Event "Titled Tuesday Blitz March 28 Late 2023"]
[White "Toniutti, Ezio"]
[Black "Wang, Alexander J"]
[WhiteFideId "113034"]
[BlackFideId "30955270"]
[WhiteElo "2215"]
[BlackElo "2322"]
[Result "1-0"]
[Round "07"]
[TimeControl "180+2"]
[Date "2023.03.28"]
[WhiteClock "0:00:11"]
[BlackClock "0:00:15"]

1. d4 {[%clk 0:02:57]}  d5 {[%clk 0:03:00]} 2. c4 {[%clk 0:02:49]}  e6 {[%clk 0:02:59]} 3. Nf3 {[%clk 0:02:48]}  c5 {[%clk 0:02:58]} 4. cxd5 {[%clk 0:02:47]}  exd5 {[%clk 0:02:59]} 5. Nc3 {[%clk 0:02:47]}  Nc6 {[%clk 0:02:56]} 6. dxc5 {[%clk 0:02:47]}  d4 {[%clk 0:02:56]} 7. Na4 {[%clk 0:02:46]}  Bxc5 {[%clk 0:02:56]} 8. Nxc5 {[%clk 0:02:46]}  Qa5+ {[%clk 0:02:56]} 9. Bd2 {[%clk 0:02:46]}  Qxc5 {[%clk 0:02:56]} 10. b4 {[%clk 0:02:41]}  Qb6 {[%clk 0:02:46]} 11. a4 {[%clk 0:02:34]}  a6 {[%clk 0:02:39]} 12. b5 {[%clk 0:01:58]}  axb5 {[%clk 0:02:30]} 13. axb5 {[%clk 0:01:58]}  Rxa1 {[%clk 0:02:30]} 14. Qxa1 {[%clk 0:01:58]}  Qxb5 {[%clk 0:02:25]} 15. e3 {[%clk 0:01:55]}  Qd5 {[%clk 0:02:10]} 16. Be2 {[%clk 0:01:24]}  Nf6 {[%clk 0:01:53]} 17. O-O {[%clk 0:01:18]}  d3 {[%clk 0:01:50]} 18. Bd1 {[%clk 0:01:15]}  O-O {[%clk 0:01:44]} 19. Bc3 {[%clk 0:01:06]}  Qd6 {[%clk 0:01:34]} 20. Bb3 {[%clk 0:01:01]}  Bg4 {[%clk 0:01:26]} 21. Nd4 {[%clk 0:00:55]}  Nxd4 {[%clk 0:01:21]} 22. Bxd4 {[%clk 0:00:55]}  h6 {[%clk 0:01:00]} 23. f3 {[%clk 0:00:41]}  Be6 {[%clk 0:00:57]} 24. Bxe6 {[%clk 0:00:29]}  Qxe6 {[%clk 0:00:55]} 25. Qc3 {[%clk 0:00:25]}  Qa6 {[%clk 0:00:42]} 26. Rd1 {[%clk 0:00:20]}  Re8 {[%clk 0:00:38]} 27. Qxd3 {[%clk 0:00:20]}  Qxd3 {[%clk 0:00:38]} 28. Rxd3 {[%clk 0:00:21]}  Rb8 {[%clk 0:00:33]} 29. Bb6 {[%clk 0:00:17]}  Rc8 {[%clk 0:00:27]} 30. Rb3 {[%clk 0:00:16]}  Nd5 {[%clk 0:00:26]} 31. Bd4 {[%clk 0:00:14]}  Rc7 {[%clk 0:00:20]} 32. Kf2 {[%clk 0:00:14]}  Rd7 {[%clk 0:00:20]} 33. Kg3 {[%clk 0:00:15]}  f6 {[%clk 0:00:20]} 34. e4 {[%clk 0:00:13]}  Ne7 {[%clk 0:00:19]} 35. Be3 {[%clk 0:00:13]}  Nc6 {[%clk 0:00:19]} 36. Bf4 {[%clk 0:00:12]}  Kf7 {[%clk 0:00:19]} 37. Rb6 {[%clk 0:00:12]}  g5 {[%clk 0:00:19]} 38. Be3 {[%clk 0:00:12]}  h5 {[%clk 0:00:19]} 39. h4 {[%clk 0:00:11]}  gxh4+ {[%clk 0:00:15]} 40. Kxh4 {[%clk 0:00:11]}  Kg6 {[%clk 0:00:15]} 41. Kg3 {[%clk 0:00:11]}  Ne5 {[%clk 0:00:14]} 42. Bf4 {[%clk 0:00:10]}  Nc6 {[%clk 0:00:14]} 43. Kh3 {[%clk 0:00:09]}  f5 {[%clk 0:00:14]} 44. e5 {[%clk 0:00:08]}  Re7 {[%clk 0:00:10]} 45. Kh4 {[%clk 0:00:08]}  Kf7 {[%clk 0:00:09]} 46. Kxh5 {[%clk 0:00:07]}  Nxe5 {[%clk 0:00:10]} 47. Bxe5 {[%clk 0:00:07]}  Rxe5 {[%clk 0:00:11]} 48. Kg5 {[%clk 0:00:07]}  Rc5 {[%clk 0:00:08]} 49. Rxb7+ {[%clk 0:00:07]}  Ke6 {[%clk 0:00:08]} 50. Rb6+ {[%clk 0:00:07]}  Ke5 {[%clk 0:00:05]} 51. Rf6 {[%clk 0:00:07]}  Rc2 {[%clk 0:00:05]} 52. Rxf5+ {[%clk 0:00:07]}  Ke6 {[%clk 0:00:06]} 53. g4 {[%clk 0:00:07]}  Rf2 {[%clk 0:00:06]} 54. f4 {[%clk 0:00:07]}  Ke7 {[%clk 0:00:07]} 55. Ra5 {[%clk 0:00:08]}  Rg2 {[%clk 0:00:08]} 56. f5 {[%clk 0:00:08]}  Kf7 {[%clk 0:00:08]} 57. Ra7+ {[%clk 0:00:08]}  Kf8 {[%clk 0:00:09]} 58. Kf6 {[%clk 0:00:09]}  Kg8 {[%clk 0:00:07]} 59. g5 {[%clk 0:00:09]}  Rb2 {[%clk 0:00:07]} 60. Kg6 {[%clk 0:00:09]}  Rb8 {[%clk 0:00:06]} 61. f6 {[%clk 0:00:09]}  Kf8 {[%clk 0:00:06]} 62. Rh7 {[%clk 0:00:09]}  Kg8 {[%clk 0:00:05]} 63. f7+ {[%clk 0:00:09]}  Kf8 {[%clk 0:00:05]} 64. Rh8+ {[%clk 0:00:09]}  Ke7 {[%clk 0:00:06]} 65. Rxb8 {[%clk 0:00:10]}  Ke6 {[%clk 0:00:07]} 66. Kg7 {[%clk 0:00:10]}  Ke5 {[%clk 0:00:08]} 67. f8=Q {[%clk 0:00:11]}  Ke6 {[%clk 0:00:08]} 68. Re8+ {[%clk 0:00:10]}  Kd5 {[%clk 0:00:09]} 69. Qf5+ {[%clk 0:00:10]}  Kc6 {[%clk 0:00:10]} 70. Qc8+ {[%clk 0:00:10]}  Kd6 {[%clk 0:00:10]} 71. Re6+ {[%clk 0:00:10]}  Kd5 {[%clk 0:00:11]} 72. Qc6+ {[%clk 0:00:10]}  Kd4 {[%clk 0:00:12]} 73. Re4+ {[%clk 0:00:10]}  Kd3 {[%clk 0:00:13]} 74. Qc4+ {[%clk 0:00:11]}  Kd2 {[%clk 0:00:14]} 75. Re2+ {[%clk 0:00:11]}  Kd1 {[%clk 0:00:15]} 76. Qc2# {[%clk 0:00:11]} 1-0


[Site "https://www.chess.com"]

[Event "Titled Tuesday Blitz March 28 Late 2023"]
[White "Bogaudinov, Rushan"]
[Black "Petukhov, Dmitry"]
[WhiteFideId "4129288"]
[BlackFideId "4142748"]
[WhiteElo "1949"]
[BlackElo "2311"]
[Result "1-0"]
[Round "07"]
[TimeControl "180+2"]
[Date "2023.03.28"]
[WhiteClock "0:00:38"]
[BlackClock "0:00:31"]

1. a3 {[%clk 0:03:00]}  a5 {[%clk 0:02:53]} 2. Nf3 {[%clk 0:02:58]}  Nf6 {[%clk 0:02:52]} 3. g3 {[%clk 0:02:57]}  g6 {[%clk 0:02:52]} 4. Bg2 {[%clk 0:02:57]}  Bg7 {[%clk 0:02:53]} 5. O-O {[%clk 0:02:58]}  O-O {[%clk 0:02:54]} 6. d4 {[%clk 0:02:58]}  d5 {[%clk 0:02:55]} 7. b3 {[%clk 0:02:50]}  Ne4 {[%clk 0:02:54]} 8. Bb2 {[%clk 0:02:49]}  c5 {[%clk 0:02:54]} 9. e3 {[%clk 0:02:49]}  Nc6 {[%clk 0:02:53]} 10. Nc3 {[%clk 0:02:43]}  cxd4 {[%clk 0:02:47]} 11. Nxe4 {[%clk 0:02:41]}  dxe4 {[%clk 0:02:44]} 12. Nxd4 {[%clk 0:02:40]}  Nxd4 {[%clk 0:02:44]} 13. Bxd4 {[%clk 0:02:38]}  Bxd4 {[%clk 0:02:43]} 14. Qxd4 {[%clk 0:02:37]}  Qxd4 {[%clk 0:02:43]} 15. exd4 {[%clk 0:02:38]}  f5 {[%clk 0:02:44]} 16. c4 {[%clk 0:02:36]}  Be6 {[%clk 0:02:20]} 17. f3 {[%clk 0:02:34]}  a4 {[%clk 0:02:15]} 18. d5 {[%clk 0:02:12]}  Bf7 {[%clk 0:02:15]} 19. b4 {[%clk 0:02:07]}  b5 {[%clk 0:02:14]} 20. fxe4 {[%clk 0:02:07]}  bxc4 {[%clk 0:02:12]} 21. exf5 {[%clk 0:02:03]}  Rad8 {[%clk 0:01:59]} 22. fxg6 {[%clk 0:01:59]}  Bxg6 {[%clk 0:02:00]} 23. Rxf8+ {[%clk 0:01:51]}  Kxf8 {[%clk 0:01:59]} 24. Rc1 {[%clk 0:01:48]}  Rc8 {[%clk 0:01:54]} 25. Rc3 {[%clk 0:01:44]}  Bd3 {[%clk 0:01:53]} 26. Kf2 {[%clk 0:01:42]}  Kg7 {[%clk 0:01:46]} 27. Ke3 {[%clk 0:01:42]}  Rf8 {[%clk 0:01:45]} 28. Be4 {[%clk 0:01:37]}  Bf1 {[%clk 0:01:39]} 29. Kd4 {[%clk 0:01:29]}  Rf2 {[%clk 0:01:36]} 30. Rf3 {[%clk 0:01:26]}  Rd2+ {[%clk 0:01:32]} 31. Kc3 {[%clk 0:01:23]}  Rd1 {[%clk 0:01:32]} 32. b5 {[%clk 0:01:13]}  Re1 {[%clk 0:01:08]} 33. Bc2 {[%clk 0:01:02]}  Bg2 {[%clk 0:01:05]} 34. Rf5 {[%clk 0:00:58]}  Bh3 {[%clk 0:01:01]} 35. Rf2 {[%clk 0:00:50]}  Bc8 {[%clk 0:00:41]} 36. Kxc4 {[%clk 0:00:46]}  Bb7 {[%clk 0:00:41]} 37. Rd2 {[%clk 0:00:45]}  Ra1 {[%clk 0:00:38]} 38. Kb4 {[%clk 0:00:44]}  Ra2 {[%clk 0:00:36]} 39. Kxa4 {[%clk 0:00:42]}  Bxd5 {[%clk 0:00:35]} 40. Rxd5 {[%clk 0:00:42]}  Rxc2 {[%clk 0:00:36]} 41. b6 {[%clk 0:00:41]}  Rc8 {[%clk 0:00:32]} 42. b7 {[%clk 0:00:40]}  Re8 {[%clk 0:00:31]} 43. Rc5 {[%clk 0:00:38]} 1-0


[Site "https://www.chess.com"]

[Event "Titled Tuesday Blitz March 28 Late 2023"]
[White "Lopez Perdomo, Juan David"]
[Black "Papayan, Oleg"]
[WhiteFideId "4405137"]
[BlackFideId "4193911"]
[WhiteElo "1965"]
[BlackElo "2153"]
[Result "0-1"]
[Round "07"]
[TimeControl "180+2"]
[Date "2023.03.28"]
[WhiteClock "0:00:34"]
[BlackClock "0:01:13"]

1. e4 {[%clk 0:02:59]}  d5 {[%clk 0:03:00]} 2. exd5 {[%clk 0:02:59]}  Qxd5 {[%clk 0:03:01]} 3. Nf3 {[%clk 0:02:59]}  Bg4 {[%clk 0:02:56]} 4. Be2 {[%clk 0:02:59]}  Nc6 {[%clk 0:02:53]} 5. Nc3 {[%clk 0:02:59]}  Qd7 {[%clk 0:02:52]} 6. d4 {[%clk 0:02:52]}  O-O-O {[%clk 0:02:49]} 7. Be3 {[%clk 0:02:52]}  Bxf3 {[%clk 0:02:47]} 8. Bxf3 {[%clk 0:02:49]}  Nxd4 {[%clk 0:02:47]} 9. Bxd4 {[%clk 0:02:46]}  Qxd4 {[%clk 0:02:48]} 10. Qxd4 {[%clk 0:02:46]}  Rxd4 {[%clk 0:02:49]} 11. Nb5 {[%clk 0:02:46]}  Rb4 {[%clk 0:02:42]} 12. Nxa7+ {[%clk 0:01:41]}  Kb8 {[%clk 0:02:42]} 13. a3 {[%clk 0:01:39]}  Rb6 {[%clk 0:02:25]} 14. O-O-O {[%clk 0:01:37]}  Kxa7 {[%clk 0:02:24]} 15. Rd8 {[%clk 0:01:37]}  Nf6 {[%clk 0:02:25]} 16. Re1 {[%clk 0:01:18]}  g6 {[%clk 0:02:23]} 17. Kb1 {[%clk 0:01:18]}  e6 {[%clk 0:01:47]} 18. g4 {[%clk 0:00:47]}  Bg7 {[%clk 0:01:46]} 19. Rd3 {[%clk 0:00:48]}  Rd6 {[%clk 0:01:40]} 20. Rb3 {[%clk 0:00:48]}  Rb6 {[%clk 0:01:40]} 21. Rc3 {[%clk 0:00:48]}  Nd5 {[%clk 0:01:36]} 22. Rb3 {[%clk 0:00:37]}  Rxb3 {[%clk 0:01:36]} 23. cxb3 {[%clk 0:00:37]}  c6 {[%clk 0:01:24]} 24. Bxd5 {[%clk 0:00:27]}  cxd5 {[%clk 0:01:23]} 25. Rc1 {[%clk 0:00:27]}  Kb6 {[%clk 0:01:23]} 26. a4 {[%clk 0:00:26]}  Be5 {[%clk 0:01:16]} 27. h3 {[%clk 0:00:22]}  h5 {[%clk 0:01:16]} 28. f3 {[%clk 0:00:20]}  hxg4 {[%clk 0:01:16]} 29. hxg4 {[%clk 0:00:21]}  Rh2 {[%clk 0:01:16]} 30. Rc8 {[%clk 0:00:16]}  Rxb2+ {[%clk 0:01:15]} 31. Kc1 {[%clk 0:00:16]}  Rxb3 {[%clk 0:01:15]} 32. a5+ {[%clk 0:00:17]}  Kxa5 {[%clk 0:01:14]} 33. f4 {[%clk 0:00:16]}  Rc3+ {[%clk 0:01:13]} 34. Kb1 {[%clk 0:00:15]}  Rxc8 {[%clk 0:01:13]} 35. fxe5 {[%clk 0:00:14]}  Rc4 {[%clk 0:01:14]} 36. g5 {[%clk 0:00:15]}  Rg4 {[%clk 0:01:14]} 37. Kc2 {[%clk 0:00:15]}  Rxg5 {[%clk 0:01:15]} 38. Kd3 {[%clk 0:00:16]}  Rxe5 {[%clk 0:01:16]} 39. Kd4 {[%clk 0:00:17]}  Re4+ {[%clk 0:01:16]} 40. Kc5 {[%clk 0:00:18]}  d4 {[%clk 0:01:16]} 41. Kd6 {[%clk 0:00:19]}  d3 {[%clk 0:01:16]} 42. Ke7 {[%clk 0:00:20]}  d2 {[%clk 0:01:17]} 43. Kf6 {[%clk 0:00:20]}  d1=Q {[%clk 0:01:16]} 44. Ke7 {[%clk 0:00:21]}  g5 {[%clk 0:01:16]} 45. Kf6 {[%clk 0:00:22]}  g4 {[%clk 0:01:17]} 46. Kg7 {[%clk 0:00:22]}  g3 {[%clk 0:01:18]} 47. Kf6 {[%clk 0:00:22]}  g2 {[%clk 0:01:19]} 48. Ke7 {[%clk 0:00:23]}  f5 {[%clk 0:01:20]} 49. Kf6 {[%clk 0:00:24]}  f4 {[%clk 0:01:21]} 50. Ke7 {[%clk 0:00:24]}  f3 {[%clk 0:01:21]} 51. Kf6 {[%clk 0:00:25]}  f2 {[%clk 0:01:22]} 52. Kg5 {[%clk 0:00:25]}  Re3 {[%clk 0:01:23]} 53. Kh4 {[%clk 0:00:26]}  e5 {[%clk 0:01:24]} 54. Kg5 {[%clk 0:00:24]}  b5 {[%clk 0:01:20]} 55. Kf6 {[%clk 0:00:25]}  b4 {[%clk 0:01:21]} 56. Kg5 {[%clk 0:00:26]}  b3 {[%clk 0:01:22]} 57. Kh4 {[%clk 0:00:27]}  b2 {[%clk 0:01:22]} 58. Kg5 {[%clk 0:00:27]}  Ra3 {[%clk 0:01:21]} 59. Kf6 {[%clk 0:00:28]}  e4 {[%clk 0:01:22]} 60. Ke6 {[%clk 0:00:29]}  e3 {[%clk 0:01:23]} 61. Ke5 {[%clk 0:00:29]}  e2 {[%clk 0:01:23]} 62. Kf4 {[%clk 0:00:29]}  Kb4 {[%clk 0:01:24]} 63. Kg4 {[%clk 0:00:30]}  Kb3 {[%clk 0:01:24]} 64. Kh3 {[%clk 0:00:31]}  Ka2+ {[%clk 0:01:25]} 65. Kh2 {[%clk 0:00:31]}  Ra8 {[%clk 0:01:22]} 66. Kh3 {[%clk 0:00:32]}  b1=N {[%clk 0:01:21]} 67. Kh4 {[%clk 0:00:33]}  e1=N {[%clk 0:01:20]} 68. Kh3 {[%clk 0:00:34]}  Ka1 {[%clk 0:01:18]} 69. Kh2 {[%clk 0:00:34]}  f1=N+ {[%clk 0:01:15]} 70. Kg1 {[%clk 0:00:34]}  Nf3+ {[%clk 0:01:14]} 71. Kf2 {[%clk 0:00:34]}  Ra2# {[%clk 0:01:13]} 0-1


[Site "https://www.chess.com"]

[Event "Titled Tuesday Blitz March 28 Late 2023"]
[White "Miszler, Levente"]
[Black "Djordjevic, Dejan N"]
[WhiteFideId "763276"]
[BlackFideId "913316"]
[WhiteElo "2176"]
[BlackElo "2261"]
[Result "1-0"]
[Round "07"]
[TimeControl "180+2"]
[Date "2023.03.28"]
[WhiteClock "0:00:32"]
[BlackClock "0:00:02"]

1. e4 {[%clk 0:03:00]}  c5 {[%clk 0:02:28]} 2. c3 {[%clk 0:03:00]}  d5 {[%clk 0:02:27]} 3. exd5 {[%clk 0:02:59]}  Qxd5 {[%clk 0:02:26]} 4. d4 {[%clk 0:03:00]}  Nc6 {[%clk 0:02:26]} 5. Nf3 {[%clk 0:02:59]}  Nf6 {[%clk 0:02:24]} 6. Be3 {[%clk 0:02:55]}  cxd4 {[%clk 0:02:23]} 7. cxd4 {[%clk 0:02:53]}  e6 {[%clk 0:02:24]} 8. Nc3 {[%clk 0:02:54]}  Qa5 {[%clk 0:02:23]} 9. Bd3 {[%clk 0:02:52]}  Be7 {[%clk 0:02:22]} 10. O-O {[%clk 0:02:50]}  O-O {[%clk 0:02:22]} 11. Re1 {[%clk 0:02:44]}  Nb4 {[%clk 0:02:20]} 12. Bb1 {[%clk 0:02:41]}  Nbd5 {[%clk 0:02:20]} 13. Ne5 {[%clk 0:02:39]}  Rd8 {[%clk 0:02:17]} 14. Nxd5 {[%clk 0:02:29]}  Qxd5 {[%clk 0:02:14]} 15. a3 {[%clk 0:02:21]}  b6 {[%clk 0:02:14]} 16. Ba2 {[%clk 0:02:21]}  Qd6 {[%clk 0:02:03]} 17. Qf3 {[%clk 0:02:18]}  Rb8 {[%clk 0:01:59]} 18. Nc6 {[%clk 0:01:53]}  Bb7 {[%clk 0:01:59]} 19. Rac1 {[%clk 0:01:53]}  Bxc6 {[%clk 0:01:41]} 20. Rxc6 {[%clk 0:01:51]}  Qd7 {[%clk 0:01:42]} 21. Rec1 {[%clk 0:01:49]}  Rbc8 {[%clk 0:01:41]} 22. h3 {[%clk 0:01:28]}  h6 {[%clk 0:01:39]} 23. b4 {[%clk 0:01:21]}  a5 {[%clk 0:00:48]} 24. bxa5 {[%clk 0:01:02]}  bxa5 {[%clk 0:00:46]} 25. a4 {[%clk 0:01:03]}  Ba3 {[%clk 0:00:31]} 26. R1c2 {[%clk 0:01:01]}  Be7 {[%clk 0:00:29]} 27. g3 {[%clk 0:01:00]}  Rxc6 {[%clk 0:00:21]} 28. Qxc6 {[%clk 0:01:00]}  Qxc6 {[%clk 0:00:17]} 29. Rxc6 {[%clk 0:01:01]}  Rd7 {[%clk 0:00:17]} 30. Bb1 {[%clk 0:00:54]}  g6 {[%clk 0:00:12]} 31. Bd3 {[%clk 0:00:47]}  Kg7 {[%clk 0:00:09]} 32. Bb5 {[%clk 0:00:44]}  Rd8 {[%clk 0:00:04]} 33. Ra6 {[%clk 0:00:43]}  Bb4 {[%clk 0:00:04]} 34. Ra7 {[%clk 0:00:40]}  Nd5 {[%clk 0:00:02]} 35. Kg2 {[%clk 0:00:32]} 1-0


[Site "https://www.chess.com"]